bitfinex/quotes_ETHUSD_20240530
["timestamp","ask_amount","ask_price","bid_price","bid_amount"]
[1717074943018,0.16122846,3783.3,3782.8,1.84789222]
[1717074943415,0.16122846,3783.3,3782.9,0.04930542]
[1717074943751,2.81958,3784.1,3783.0,3.94127222]
[1717074943956,2.81958,3784.1,3783.1,0.62641776]
[1717074944163,2.64278,3783.9,3783.1,0.04923328]
[1717074944641,2.64278,3783.9,3783.2,0.04919722]
[1717074945022,2.64278,3783.9,3782.7,3.0]
[1717074945229,2.643,3783.6,3783.3,0.04916115]
[1717074945460,2.643,3783.6,3782.7,3.0]
[1717074945762,2.643,3783.6,3782.8,0.645667]
[1717074946175,2.643,3783.6,3782.9,0.04892754]
[1717074946835,2.64325,3783.3,3782.9,0.04892754]
[1717074947240,2.64325,3783.3,3782.2,2.64395]
[1717074947445,2.64325,3783.3,3782.3,0.55]
[1717074947645,2.64325,3783.3,3782.4,1.61728722]
[1717074947844,2.64325,3783.3,3782.5,0.55]
[1717074948072,2.64291,3783.8,3782.6,1.29789222]
[1717074948258,2.64291,3783.8,3782.8,2.64351]
[1717074948584,0.17689,3784.1,3783.0,2.64335]
[1717074948760,0.17689,3784.1,3783.2,2.64324]
[1717074948971,0.17689,3784.1,3783.3,0.59721063]
[1717074949296,0.17689,3784.1,3783.3,1.89510285]
[1717074949843,0.17689,3784.1,3783.4,1.29789222]
[1717074950154,0.17689,3784.1,3783.5,0.55]
[1717074950355,0.17689,3784.1,3783.6,6.39455739]
[1717074950543,0.17689,3784.1,3783.8,2.64283]
[1717074950891,0.17689,3784.1,3783.9,1.89468923]
[1717074951352,0.17689,3784.1,3784.0,2.6427]
[1717074951553,0.17689,3784.1,3784.0,4.53733394]
[1717074951745,0.17689,3784.1,3784.0,5.04606733]
[1717074952555,0.17689,3784.1,3784.0,3.74817511]
[1717074952887,0.17689,3784.1,3784.0,2.68944172]
[1717074953090,0.17689,3784.1,3784.0,4.53733394]
[1717074953403,0.17689,3784.1,3784.0,0.04674172]
[1717074953866,0.17689,3784.1,3784.0,0.04467262]
[1717074954069,0.17689,3784.1,3783.5,2.643]
[1717074954286,0.17689,3784.1,3783.5,3.6453]
[1717074954488,0.17689,3784.1,3783.6,0.04481683]
[1717074955395,0.17689,3784.1,3783.7,3.94079222]
[1717074955603,0.17689,3784.1,3783.8,0.55]
[1717074955751,0.17689,3784.1,3783.9,1.29789222]
[1717074955951,0.17689,3784.1,3784.0,1.04839414]
[1717074956179,0.17689,3784.1,3784.0,2.34628636]
[1717074960709,0.17689,3784.1,3784.0,1.79628636]
[1717074961030,0.17689,3784.1,3784.0,0.04483348]
[1717074961194,2.09389,3784.1,3784.0,0.04483348]
[1717074961546,2.09389,3784.1,3783.5,2.64301]
[1717074961547,0.17689,3784.1,3783.5,2.64301]
[1717074961790,0.17689,3784.1,3783.7,2.64288]
[1717074961985,0.17689,3784.1,3783.9,2.64277]
[1717074962299,0.17689,3784.1,3784.0,1.74128512]
[1717074962479,0.17689,3784.1,3784.0,0.4433929]
[1717074962795,0.17689,3784.1,3784.0,1.3427281]
[1717074962998,0.17689,3784.1,3784.0,1.8927281]
[1717074963379,0.17689,3784.1,3784.0,4.8927281]
[1717074963566,0.17689,3784.1,3784.0,1.8927281]
[1717074963909,0.17689,3784.1,3784.0,0.04483588]
[1717074964559,0.17689,3784.1,3783.2,7.38]
[1717074964789,0.17689,3784.1,3783.3,1.29789222]
[1717074964988,0.17689,3784.1,3783.3,1.34170614]
[1717074966186,2.3054,3784.0,3783.3,0.04381392]
[1717074966818,0.17689,3784.1,3783.4,1.29789222]
[1717074967353,0.17689,3784.1,3783.6,2.64297]
[1717074967557,0.17689,3784.1,3783.7,1.69638044]
[1717074967689,0.17689,3784.1,3783.8,0.55]
[1717074968026,0.17689,3784.1,3783.8,1.84789222]
[1717074968207,0.17689,3784.1,3783.9,0.04387578]
[1717074968988,0.17689,3784.1,3783.2,7.38]
[1717074969225,0.17689,3784.1,3783.3,1.29789222]
[1717074969432,2.6427,3784.0,3783.3,1.34192196]
[1717074969593,0.17689,3784.1,3783.3,1.34192196]
[1717074970647,2.81956,3784.1,3783.4,0.55]
[1717074970923,2.81956,3784.1,3783.4,0.04399368]
[1717074973665,2.64287,3783.8,3783.4,0.04399368]
[1717074973932,4.55998,3783.6,3783.4,0.04399368]
[1717074974105,2.64337,3783.1,3782.6,7.38]
[1717074974309,2.64353,3782.9,3782.1,7.38]
[1717074974513,2.64353,3782.9,3782.7,0.04424135]
[1717074974819,2.64353,3782.9,3782.1,8.67789222]
[1717074974820,2.64353,3782.9,3782.8,0.04468259]
[1717074975022,4.92493,3782.9,3782.8,0.04468259]
[1717074975325,4.92493,3782.9,3781.8,19.46]
[1717074975326,2.2814,3782.9,3781.8,19.46]
[1717074975636,2.2814,3782.9,3781.9,1.34307231]
[1717074976439,2.64356,3782.8,3781.9,1.34307231]
[1717074976597,2.64356,3782.8,3782.0,0.55]
[1717074976792,2.64356,3782.8,3782.1,1.34307695]
[1717074977232,2.64377,3782.5,3782.1,1.34307695]
[1717074979925,2.64389,3782.3,3782.1,0.04518473]
[1717074980136,2.2551,3782.2,3782.1,0.04518473]
[1717074980311,2.2551,3782.2,3781.1,7.38]
[1717074980515,1.917,3781.8,3781.1,7.38]
[1717074980713,1.917,3781.8,3780.9,19.46]
[1717074981105,2.64451,3781.5,3780.9,19.46]
[1717074981304,1.917,3781.4,3780.7,19.74]
[1717074981531,2.2766,3781.3,3780.3,7.38]
[1717074981730,1.917,3781.0,3780.3,7.38]
[1717074981946,2.64492,3780.9,3780.3,8.118]
[1717074982128,2.64492,3780.9,3780.3,7.38]
[1717074982330,2.64514,3780.6,3780.3,7.38]
[1717074982948,2.64514,3780.6,3779.1,2.64612]
[1717074983117,2.64514,3780.6,3779.2,1.29789222]
[1717074983316,2.2766,3781.3,3779.2,1.29789222]
[1717074983317,2.64533,3780.3,3779.2,1.29789222]
[1717074983656,1.917,3780.4,3779.3,0.63189122]
[1717074983657,2.64548,3780.1,3779.3,0.63189122]
[1717074983861,2.64548,3780.1,3779.3,1.92978344]
[1717074984174,2.64548,3780.1,3779.3,0.63189122]
[1717074984305,2.64515,3780.5,3779.5,2.64583]
[1717074984603,2.64459,3781.3,3780.0,2.64543]
[1717074984820,2.64459,3781.3,3780.1,1.29789222]
[1717074985169,0.16426613,3781.5,3780.3,1.29789222]
[1717074985386,0.16426613,3781.5,3780.4,2.4432]
[1717074985668,0.16426613,3781.5,3780.5,2.22200144]
[1717074985815,0.16426613,3781.5,3780.9,1.29789222]
[1717074986016,0.16426613,3781.5,3781.0,0.59013505]
[1717074986263,0.16426613,3781.5,3781.1,1.29789222]
[1717074986415,0.16426613,3781.5,3781.2,0.55]
[1717074986611,0.16426613,3781.5,3781.3,1.48669495]
[1717074986815,0.16426613,3781.5,3781.4,0.55]
[1717074987121,0.16426613,3781.5,3781.4,1.8882429]
[1717074988820,0.16426613,3781.5,3781.4,7.43042097]
[1717074989020,2.3428,3783.6,3782.2,2.64389]
[1717074989228,0.498577,3783.5,3782.3,2.11228122]
[1717074989524,3.056577,3783.5,3782.3,0.04002587]
[1717074989727,2.309,3782.6,3782.3,0.04002587]
[1717074989936,2.558,3782.4,3782.3,0.04002587]
[1717074990248,2.64401,3782.2,3781.5,19.46]
[1717074990448,2.64401,3782.2,3781.3,7.38]
[1717074990675,3.164211,3782.2,3781.6,0.03874605]
[1717074990831,3.164211,3782.2,3781.3,7.38]
[1717074991031,2.64424,3781.9,3781.7,0.03870995]
[1717074991283,0.04040061,3781.8,3781.3,7.38]
[1717074991593,2.64388,3782.4,3781.4,1.29789222]
[1717074991733,2.64388,3782.4,3781.4,1.13225522]
[1717074992368,2.64388,3782.4,3781.4,1.29789222]
[1717074992549,2.6435,3782.9,3781.7,2.6443]
[1717074992748,2.6435,3782.9,3781.5,3.65269222]
[1717074992749,2.6435,3782.9,3781.9,2.64413]
[1717074992949,2.6435,3782.9,3782.0,1.84789222]
[1717074993281,2.6435,3782.9,3782.0,1.29789222]
[1717074993450,2.6435,3782.9,3782.0,1.69209444]
[1717074993645,2.64365,3782.7,3781.4,2.6445]
[1717074993846,2.64365,3782.7,3781.4,3.94239222]
[1717074994051,2.64365,3782.7,3781.6,2.64433]
[1717074994266,2.64365,3782.7,3781.7,1.29789222]
[1717074994467,0.04040061,3782.6,3781.7,1.29789222]
[1717074994641,0.04040061,3782.6,3781.8,0.39422222]
[1717074994981,2.64365,3782.7,3781.8,0.39422222]
[1717074995177,0.04040061,3782.6,3781.8,0.39422222]
[1717074995536,2.64365,3782.7,3781.8,0.39422222]
[1717074995764,0.04040061,3782.6,3781.8,0.39422222]
[1717074995945,0.04040061,3782.6,3781.7,1.29789222]
[1717074995946,2.64331,3783.2,3781.9,7.26144666]
[1717074996253,2.64331,3783.2,3781.9,4.92564666]
[1717074998344,2.64331,3783.2,3782.2,2.64389]
[1717075001034,2.64331,3783.2,3782.3,0.0384118]
[1717075001238,0.30473161,3783.1,3782.3,0.0384118]
[1717075001864,2.6434,3783.0,3782.3,0.0384118]
[1717075002045,0.264331,3783.1,3778.9,0.81921576]
[1717075002046,2.82632693,3782.8,3781.4,10.02451]
[1717075002404,2.82632693,3782.8,3782.4,0.03837572]
[1717075002550,2.82632693,3782.8,3781.4,10.02451]
[1717075002551,0.66822191,3782.7,3781.4,10.02451]
[1717075002748,2.6437,3782.6,3781.4,10.02451]
[1717075003262,2.6437,3782.6,3781.6,0.03866441]
[1717075003862,2.64392,3782.3,3781.6,0.03866441]
[1717075004058,2.64403,3782.1,3781.6,0.03866441]
[1717075004261,2.64418,3781.9,3781.0,2.64478]
[1717075004496,2.64418,3781.9,3781.7,0.03862832]
[1717075004698,2.64418,3781.9,3781.0,2.64478]
[1717075004998,2.64418,3781.9,3781.8,0.03859223]
[1717075005289,2.64418,3781.9,3781.0,2.64478]
[1717075005490,3.2089823,3781.9,3781.8,0.03859223]
[1717075005651,0.5648023,3781.9,3781.8,0.03859223]
[1717075005849,2.4904,3782.2,3781.0,2.64478]
[1717075006049,2.4904,3782.2,3781.8,0.03881551]
[1717075006350,2.64409,3782.1,3781.0,2.64478]
[1717075006789,2.64409,3782.1,3781.1,0.03906819]
[1717075006991,2.64427,3781.8,3781.1,0.03906819]
[1717075007190,0.264427,3781.7,3781.1,0.03906819]
[1717075007379,0.264427,3781.7,3780.8,19.74]
[1717075007577,2.6444,3781.6,3781.2,0.0392098]
[1717075007781,2.6444,3781.6,3780.8,7.38]
[1717075007948,2.6444,3781.6,3781.3,0.0391737]
[1717075008156,2.64426,3781.8,3780.8,7.38]
[1717075008653,2.64399,3782.2,3781.1,2.64469]
[1717075008850,2.3788,3782.4,3781.5,2.64444]
[1717075009077,2.64371,3782.6,3781.5,2.64444]
[1717075009279,0.66822191,3782.7,3780.6,19.46]
[1717075009280,2.644,3782.2,3781.6,0.03913025]
[1717075009480,2.64422,3781.9,3781.3,7.38]
[1717075009792,2.64422,3781.9,3781.7,0.03908936]
[1717075010014,2.64441,3781.6,3780.6,26.84]
[1717075010150,2.64441,3781.6,3780.6,7.38]
[1717075012691,2.64482,3781.0,3780.6,7.38]
[1717075012910,2.909302,3781.0,3779.9,2.64553]
[1717075013051,2.909302,3781.0,3779.8,7.38]
[1717075013052,2.64503,3780.7,3779.8,7.38]
[1717075013252,2.64503,3780.7,3779.8,10.02561]
[1717075013454,2.64476,3781.1,3780.0,2.64549]
[1717075013714,2.64476,3781.1,3780.0,3.94338222]
[1717075014369,2.64497,3780.8,3780.0,2.64549]
[1717075014566,2.64497,3780.8,3779.8,7.38]
[1717075015980,2.64497,3780.8,3779.8,10.02557]
[1717075016182,2.64497,3780.8,3779.9,1.04119388]
[1717075016579,2.64517,3780.5,3779.9,0.03863688]
[1717075019312,2.64517,3780.5,3779.4,41.84587]
[1717075019514,2.64517,3780.5,3780.0,0.03860076]
[1717075019806,2.64517,3780.5,3779.4,41.84587]
[1717075020306,2.64517,3780.5,3779.6,2.64572]
[1717075020679,2.64517,3780.5,3779.7,0.03870914]
[1717075021409,2.64487,3780.9,3779.9,2.64557]
[1717075021916,2.64487,3780.9,3780.0,0.03867753]
[1717075022881,2.64509,3780.6,3780.0,0.03867753]
[1717075023208,2.82242949,3780.6,3779.5,2.6458]
[1717075023407,2.82242949,3780.6,3780.1,0.038675]
[1717075023616,2.82242949,3780.6,3779.5,2.6458]
[1717075023815,2.64532,3780.3,3780.2,0.03863888]
[1717075023979,2.64532,3780.3,3779.4,39.2]
[1717075024181,0.04040061,3780.2,3779.4,39.2]
[1717075024387,2.64544,3780.1,3779.5,0.0392469]
[1717075024998,0.04040061,3780.0,3779.5,0.0392469]
[1717075025226,0.04040061,3780.0,3779.1,2.64607]
[1717075025521,2.64563,3779.9,3779.1,2.64607]
[1717075025727,2.91423306,3779.9,3779.2,0.03935531]
[1717075025929,2.64563,3779.9,3779.2,0.03935531]
[1717075026144,2.64534,3780.3,3779.3,2.64598]
[1717075026287,2.64534,3780.3,3779.3,2.68529917]
[1717075026629,0.16972023,3780.5,3779.4,1.29789222]
[1717075026786,0.16972023,3780.5,3779.5,2.43372114]
[1717075026989,0.16972023,3780.5,3780.2,2.64534]
[1717075027301,0.16972023,3780.5,3780.3,0.03901789]
[1717075027515,0.16972023,3780.5,3780.4,2.64522]
[1717075027838,0.16972023,3780.5,3780.4,2.68412017]
[1717075028042,0.16972023,3780.5,3780.4,2.95253219]
[1717075030447,0.16972023,3780.5,3780.4,5.95253219]
[1717075030656,0.16972023,3780.5,3780.4,9.58852441]
[1717075030950,0.16972023,3780.5,3780.4,12.78374441]
[1717075031619,2.6439,3782.3,3781.4,2.64448]
[1717075031819,3.14481,3782.3,3781.4,2.64448]
[1717075032053,0.50091,3782.3,3781.6,2.64435]
[1717075032225,2.3652,3782.4,3781.6,2.64435]
[1717075032419,2.3652,3782.4,3781.7,0.03820047]
[1717075033004,2.64361,3782.7,3781.8,2.64419]
[1717075033451,5.558,3783.2,3781.3,2.257]
[1717075033452,2.64335,3783.1,3782.0,2.64404]
[1717075033755,2.64335,3783.1,3782.1,0.03795059]
[1717075033756,0.520135,3783.0,3782.1,0.03795059]
[1717075034354,0.520135,3783.0,3782.2,2.64392]
[1717075034650,0.520135,3783.0,3782.2,2.68183211]
[1717075035441,2.64335,3783.1,3782.2,2.68183211]
[1717075036040,2.64335,3783.1,3782.2,0.03791211]
[1717075036222,0.04040061,3783.0,3782.2,0.03791211]
[1717075036423,2.6435,3782.9,3782.3,0.03724282]
[1717075036652,0.04040061,3782.8,3782.3,0.03724282]
[1717075036826,0.04040061,3782.8,3781.5,7.38]
[1717075036827,7.39211135,3782.7,3781.5,7.38]
[1717075037024,1.92214101,3782.6,3781.5,7.38]
[1717075037444,5.47003006,3782.7,3781.6,0.03749303]
[1717075038028,2.64378,3782.5,3781.6,0.03749303]
[1717075038756,0.04040061,3782.4,3781.6,0.03749303]
[1717075039059,0.49861806,3782.3,3781.6,0.03749303]
[1717075039460,0.49861806,3782.3,3781.3,2.64453]
[1717075039631,0.04040061,3782.2,3781.3,2.64453]
[1717075039838,0.49861806,3782.3,3781.4,0.03750914]
[1717075040668,0.49861806,3782.3,3781.5,2.64438]
[1717075041025,0.49861806,3782.3,3781.5,2.68203289]
[1717075041358,2.64378,3782.5,3781.5,2.68203289]
[1717075041567,0.26839006,3782.7,3781.5,2.68203289]
[1717075042726,4.958,3783.2,3781.7,2.3638]
[1717075042927,4.958,3783.2,3781.7,9.7438]
[1717075043271,4.958,3783.2,3781.8,0.03745348]
[1717075043635,2.64292,3783.7,3782.4,2.64375]
[1717075043864,2.64307,3783.5,3782.4,2.64375]
[1717075044052,0.62666574,3783.4,3782.4,2.64375]
[1717075044544,2.64307,3783.5,3782.6,2.4137]
[1717075044750,2.64307,3783.5,3782.5,0.03717452]
[1717075044960,2.64307,3783.5,3782.7,0.0358168]
[1717075045121,2.64307,3783.5,3782.4,2.64375]
[1717075045317,2.64307,3783.5,3782.8,0.03578073]
[1717075045664,0.264307,3783.4,3782.4,2.64375]
[1717075045837,2.64307,3783.5,3782.9,0.03574466]
[1717075046193,0.04040061,3783.4,3782.4,2.64375]
[1717075046661,2.6432,3783.3,3782.5,0.03588895]
[1717075046865,0.04040061,3783.2,3782.5,0.03588895]
[1717075047066,2.64333,3783.1,3782.2,7.38]
[1717075047383,2.64333,3783.1,3782.6,0.03585287]
[1717075047384,0.49522306,3783.0,3782.6,0.03585287]
[1717075047589,0.49522306,3783.0,3782.2,7.38]
[1717075047754,0.49522306,3783.0,3782.7,0.0358168]
[1717075047937,0.49522306,3783.0,3782.2,7.38]
[1717075048137,2.64347,3782.9,3782.8,0.03578073]
[1717075048337,2.95733931,3782.9,3782.0,2.64406]
[1717075048583,2.95733931,3782.9,3782.8,0.03578073]
[1717075048766,2.95733931,3782.9,3781.8,19.46]
[1717075049088,2.95733931,3782.9,3781.6,10.02434]
[1717075049089,0.31386931,3782.9,3781.6,10.02434]
[1717075049235,2.6437,3782.6,3781.6,10.02434]
[1717075049436,2.6437,3782.6,3781.9,0.03610544]
[1717075049637,3.13865306,3783.0,3781.9,2.64414]
[1717075049869,2.64316,3783.4,3782.2,2.64392]
[1717075050287,2.64316,3783.4,3782.3,0.03596111]
[1717075050577,0.04040061,3783.3,3782.3,0.03596111]
[1717075050789,0.04040061,3783.3,3782.4,2.6438]
[1717075051000,2.64316,3783.4,3782.4,2.6438]
[1717075051155,2.907476,3783.4,3782.5,0.03588895]
[1717075052039,2.64288,3783.8,3782.6,2.64366]
[1717075052281,2.64288,3783.8,3782.7,0.0358168]
[1717075054117,2.64307,3783.5,3782.7,0.0358168]
[1717075055295,5.0455,3784.3,3782.7,0.0358168]
[1717075055296,2.6428,3783.9,3782.7,0.0358168]
[1717075055597,3.94069222,3783.9,3782.7,0.43794996]
[1717075055780,2.64303,3783.6,3782.7,0.0358168]
[1717075056652,2.64313,3783.4,3782.7,0.0358168]
[1717075056851,0.30875367,3783.3,3782.4,7.38]
[1717075057078,0.30875367,3783.3,3782.5,0.0355203]
[1717075057079,0.04040061,3783.2,3782.5,0.0355203]
[1717075057270,0.04040061,3783.2,3782.2,2.64395]
[1717075057491,0.04040061,3783.2,3782.3,0.03559246]
[1717075058484,2.64337,3783.1,3782.3,0.03559246]
[1717075058735,0.35240857,3783.0,3782.0,7.38]
[1717075058960,0.35240857,3783.0,3782.4,0.03555638]
[1717075059175,0.92440974,3783.0,3782.0,7.38]
[1717075059369,0.92440974,3783.0,3782.5,0.0355203]
[1717075059671,0.92440974,3783.0,3782.6,0.03548422]
[1717075059870,0.34824097,3782.9,3782.0,7.38]
[1717075060082,2.99177097,3782.9,3782.7,0.03544815]
[1717075060287,2.99177097,3782.9,3782.0,7.38]
[1717075060497,2.64364,3782.7,3782.0,7.38]
[1717075061212,2.9428281,3782.7,3782.1,0.03566462]
[1717075061359,0.57203524,3782.6,3782.1,0.03566462]
[1717075061562,0.57203524,3782.6,3782.0,7.38]
[1717075061764,2.64376,3782.5,3782.2,0.03562854]
[1717075061987,2.64376,3782.5,3782.0,7.38]
[1717075062168,0.55009481,3782.4,3782.3,0.03559246]
[1717075062512,0.55009481,3782.4,3782.0,7.38]
[1717075062701,0.57206628,3782.4,3782.3,0.03559246]
[1717075062861,0.57206628,3782.4,3781.4,2.64451]
[1717075063056,0.57206628,3782.4,3781.5,0.03588116]
[1717075063571,2.64376,3782.5,3781.5,0.03588116]
[1717075065303,2.64376,3782.5,3781.6,2.64435]
[1717075065527,2.558,3782.9,3781.7,6.14992312]
[1717075065528,2.64348,3782.9,3781.7,6.14992312]
[1717075065678,2.64323,3783.3,3782.1,2.64398]
[1717075066001,2.64323,3783.3,3782.2,0.03586074]
[1717075066203,2.64323,3783.3,3782.3,0.26798407]
[1717075066438,1.916,3783.2,3782.3,0.26798407]
[1717075066604,1.916,3783.2,3782.4,0.03578858]
[1717075066805,2.64323,3783.3,3782.4,2.67957858]
[1717075067207,2.64296,3783.7,3782.5,2.3015]
[1717075067409,0.57188651,3783.6,3782.6,0.52490627]
[1717075067615,0.57188651,3783.6,3782.6,0.56049341]
[1717075067790,4.55896,3783.7,3782.6,0.56049341]
[1717075067995,0.57187222,3783.6,3782.6,0.56049341]
[1717075069395,2.64306,3783.5,3782.6,0.56049341]
[1717075070449,2.554,3783.3,3782.6,0.03558714]
[1717075070633,0.04040061,3783.2,3782.6,0.03558714]
[1717075070942,2.64331,3783.2,3782.7,0.03548646]
[1717075071110,2.64331,3783.2,3782.3,7.38]
[1717075071327,2.64331,3783.2,3782.8,0.03545038]
[1717075071534,0.04040061,3783.1,3782.3,7.38]
[1717075071732,2.64331,3783.2,3782.9,0.03541431]
[1717075071924,0.57193987,3783.1,3782.3,7.38]
[1717075072126,0.57193936,3783.1,3783.0,0.03537825]
[1717075072362,0.57193936,3783.1,3782.3,7.38]
[1717075072535,0.57193936,3783.1,3783.0,0.03537825]
[1717075072863,0.61233997,3783.1,3782.3,7.38]
[1717075073067,0.61233997,3783.1,3783.0,0.03537825]
[1717075073248,0.61233997,3783.1,3782.3,7.38]
[1717075073447,0.61233997,3783.1,3783.0,0.03537825]
[1717075073618,0.61233997,3783.1,3782.3,7.38]
[1717075073959,0.61233997,3783.1,3782.4,0.738]
[1717075074146,0.04040061,3783.1,3782.4,0.77359468]
[1717075074552,0.61233318,3783.1,3782.4,0.77359468]
[1717075074753,2.64342,3783.0,3782.4,0.77359468]
[1717075074953,0.04040061,3782.9,3782.4,0.03559468]
[1717075075124,0.04040061,3782.9,3782.0,2.64408]
[1717075075468,2.554,3783.3,3782.5,0.03555861]
[1717075075469,2.64355,3782.8,3782.5,0.03555861]
[1717075075758,2.64355,3782.8,3782.6,0.03552253]
[1717075075934,2.64355,3782.8,3782.0,3.0]
[1717075076117,2.64355,3782.8,3782.7,0.03548646]
[1717075076318,3.2155473,3782.8,3782.0,4.55013143]
[1717075076546,3.2155473,3782.8,3782.7,0.03548646]
[1717075076959,3.2155473,3782.8,3782.0,4.55013143]
[1717075077136,2.64355,3782.8,3782.7,0.03548646]
[1717075077337,3.21555084,3782.8,3782.0,4.55013143]
[1717075077520,2.64355,3782.8,3782.7,0.03548646]
[1717075077716,0.83635232,3782.8,3781.9,7.38]
[1717075077931,2.64377,3782.5,3781.9,7.38]
[1717075078374,2.6439,3782.3,3781.9,7.38]
[1717075079623,2.818355,3782.8,3781.9,7.38]
[1717075079624,2.64403,3782.1,3781.9,7.38]
[1717075079843,2.64403,3782.1,3781.1,2.3989]
[1717075080039,2.64403,3782.1,3781.1,3.641278]
[1717075080336,2.64422,3781.9,3781.1,3.641278]
[1717075081276,2.64441,3781.6,3781.0,7.38]
[1717075081845,2.64461,3781.3,3781.0,7.38]
[1717075082054,2.64461,3781.3,3780.5,19.46]
[1717075082866,2.64432,3781.7,3780.6,3.94296222]
[1717075083181,2.64408,3782.1,3781.0,2.3022]
[1717075083382,2.64408,3782.1,3781.0,3.60009222]
[1717075083578,2.64408,3782.1,3781.1,2.6447]
[1717075084078,2.6438,3782.5,3781.3,2.64453]
[1717075084250,2.6438,3782.5,3781.5,2.64445]
[1717075084251,0.57209529,3782.4,3781.5,2.64445]
[1717075084463,2.6438,3782.5,3781.5,2.64445]
[1717075087680,2.64397,3782.2,3781.4,0.69424222]
[1717075088111,2.64397,3782.2,3781.4,3.33874222]
[1717075089208,2.64373,3782.6,3781.7,2.4249]
[1717075089413,2.64373,3782.6,3781.7,3.72279222]
[1717075090899,2.64373,3782.6,3781.8,2.64421]
[1717075091108,2.64373,3782.6,3781.9,0.0351172]
[1717075091292,1.916,3782.9,3782.0,2.6441]
[1717075091501,1.916,3782.9,3782.1,0.30296675]
[1717075092223,2.64345,3783.0,3782.2,2.64394]
[1717075092580,2.64345,3783.0,3782.3,0.03489395]
[1717075093247,1.916,3783.2,3782.4,2.64381]
[1717075093618,1.916,3783.2,3782.5,0.03482179]
[1717075094290,1.916,3783.2,3782.5,0.30268497]
[1717075094928,2.68373061,3783.1,3782.5,0.03482179]
[1717075095132,2.68373061,3783.1,3782.0,2.64404]
[1717075095336,1.916,3782.8,3782.6,0.03475702]
[1717075095504,0.04040061,3782.7,3782.0,2.64404]
[1717075095832,1.916,3782.4,3782.1,0.03493742]
[1717075096413,1.916,3782.4,3781.7,7.38]
[1717075096577,1.916,3782.4,3782.2,0.03370191]
[1717075096727,2.64389,3782.3,3781.6,2.64437]
[1717075097133,2.64389,3782.3,3781.3,7.38]
[1717075097343,2.64389,3782.3,3781.3,8.67789222]
[1717075100065,2.64389,3782.3,3781.4,2.64448]
[1717075100268,2.64389,3782.3,3781.5,1.38080722]
[1717075106198,2.64389,3782.3,3781.6,0.0339396]
[1717075107799,2.6441,3782.0,3781.6,0.0339396]
[1717075108006,1.916,3781.9,3781.3,7.38]
[1717075108156,1.916,3781.9,3781.7,0.03390351]
[1717075108358,1.916,3781.9,3781.3,7.38]
[1717075108607,1.916,3781.9,3781.8,0.03386742]
[1717075108755,4.66451,3781.9,3781.3,7.38]
[1717075109103,1.916,3781.4,3781.3,7.38]
[1717075109302,2.6449,3780.9,3780.4,7.38]
[1717075109455,2.6449,3780.9,3780.1,2.64536]
[1717075109456,1.916,3780.8,3780.1,2.64536]
[1717075109897,2.64508,3780.6,3779.9,7.38]
[1717075110105,2.64508,3780.6,3779.9,9.19815455]
[1717075110401,2.64508,3780.6,3779.9,7.38]
[1717075111200,1.916,3780.4,3779.9,7.38]
[1717075112105,2.4622,3780.2,3779.2,0.41448843]
[1717075112306,2.64575,3779.7,3779.2,0.41448843]
[1717075113364,1.916,3779.6,3779.2,0.41448843]
[1717075113672,2.64575,3779.7,3779.2,0.41448843]
[1717075113862,3.101925,3779.7,3779.2,0.41448843]
[1717075114187,4.56175,3779.7,3779.2,0.41448843]
[1717075114979,2.64545,3780.1,3779.2,0.41448843]
[1717075116538,2.64545,3780.1,3779.3,2.64599]
[1717075117040,4.56112,3780.6,3779.5,2.64584]
[1717075118228,2.64512,3780.6,3779.5,2.64584]
[1717075118645,2.64512,3780.6,3779.7,2.64569]
[1717075119194,2.64512,3780.6,3779.6,0.39437322]
[1717075120035,2.64531,3780.3,3779.3,2.64598]
[1717075120240,4.56153,3780.0,3779.2,0.41448843]
[1717075121132,4.56153,3780.0,3779.3,0.03582071]
[1717075122444,4.56153,3780.0,3779.3,0.81885162]
[1717075123210,2.64524,3780.4,3779.3,0.81885162]
[1717075123555,4.56124,3780.4,3779.3,0.81885162]
[1717075124009,2.64524,3780.4,3779.4,2.64587]
[1717075124358,2.64524,3780.4,3779.5,0.42366944]
[1717075126107,1.916,3779.9,3779.5,0.03574843]
[1717075126489,1.916,3779.9,3779.2,0.41448843]
[1717075126490,2.68604061,3779.8,3779.2,0.41448843]
[1717075126663,2.68604061,3779.8,3779.6,0.03567877]
[1717075126664,2.64564,3779.8,3779.6,0.03567877]
[1717075126810,3.10584406,3779.8,3779.2,0.41448843]
[1717075127011,2.64538,3780.2,3779.3,0.03578718]
[1717075127206,4.56138,3780.2,3779.3,0.03578718]
[1717075127633,2.64555,3780.0,3779.3,0.03578718]
[1717075128074,2.64569,3779.8,3779.3,0.03578718]
[1717075128233,4.56169,3779.8,3779.3,0.03578718]
[1717075128433,2.64541,3780.2,3779.2,0.41448843]
[1717075128775,2.64541,3780.2,3779.4,2.64591]
[1717075129064,2.64541,3780.2,3779.5,0.03578195]
[1717075130767,1.916,3780.3,3779.5,0.03578195]
[1717075131373,1.916,3780.3,3779.6,2.64576]
[1717075131729,4.5613,3780.3,3779.7,0.03449615]
[1717075132352,4.5613,3780.3,3779.5,2.64583]
[1717075132553,4.5613,3780.3,3779.8,0.03446002]
[1717075132763,4.5613,3780.3,3779.5,2.98282478]
[1717075132971,4.5613,3780.3,3779.9,0.0344239]
[1717075133155,4.5613,3780.3,3779.5,2.98282478]
[1717075133356,4.5613,3780.3,3780.0,0.03438777]
[1717075133557,4.5613,3780.3,3779.5,2.98282478]
[1717075134072,4.5613,3780.3,3779.6,0.03453228]
[1717075135668,5.01743,3780.3,3779.6,0.03453228]
[1717075136031,5.01743,3780.3,3779.2,3.41448843]
[1717075136230,5.01743,3780.3,3779.3,0.03464069]
[1717075136231,4.5613,3780.3,3779.3,0.03464069]
[1717075137064,4.5613,3780.3,3779.4,2.64592]
[1717075137276,4.5613,3780.3,3779.5,0.03456842]
[1717075138279,1.916,3780.3,3779.7,2.6457]